fUSD/lending_fUSD_20250804
["ID","MTS","AMOUNT","RATE_DAILY","PERIOD"]
[377172548,1754266295234,-744.58,0.00050684,120]
[377172549,1754266295245,-400.0,0.00050684,120]
[377172550,1754266295255,-400.0,0.00050684,120]
[377172551,1754266295266,-400.0,0.00050684,120]
[377172552,1754266295277,-400.0,0.00050684,120]
[377172553,1754266295286,-548.48,0.00050684,120]
[377172554,1754266295295,-400.0,0.00050684,120]
[377172555,1754266295304,-400.0,0.00050684,120]
[377172556,1754266295314,-476.24297107,0.00050684,120]
[377172557,1754266295323,-400.0,0.00050684,120]
[377172558,1754266295332,-611.64,0.00050684,120]
[377172559,1754266295341,-604.74,0.00050684,120]
[377172560,1754266295350,-660.69,0.00050684,120]
[377172561,1754266295359,-400.0,0.00050684,120]
[377172562,1754266295368,-400.0,0.00050684,120]
[377172563,1754266295377,-400.0,0.00050684,120]
[377172564,1754266295386,-400.0,0.00050684,120]
[377172565,1754266295395,-400.0,0.00050684,120]
[377172566,1754266295405,-1412.34,0.00050684,120]
[377172567,1754266295414,-1483.13,0.00050684,120]
[377172568,1754266295424,-400.0,0.00050684,120]
[377172569,1754266295433,-400.0,0.00050684,120]
[377172570,1754266295443,-1096.77,0.00050684,120]
[377172571,1754266295453,-400.0,0.00050684,120]
[377172572,1754266295463,-400.0,0.00050684,120]
[377172573,1754266295472,-1008.09,0.00050684,120]
[377172574,1754266295481,-400.0,0.00050684,120]
[377172575,1754266295491,-150.4034296,0.00050684,120]
[377172576,1754266295500,-435.47,0.00050684,120]
[377172577,1754266295509,-732.16,0.00050684,120]
[377172578,1754266295518,-787.39,0.00050684,120]
[377172579,1754266295528,-400.0,0.00050684,120]
[377172580,1754266295536,-400.0,0.00050684,120]
[377172581,1754266295545,-495.52,0.00050684,120]
[377172582,1754266295555,-333.95688583,0.00050684,120]
[377172583,1754266295564,-755.04,0.00050684,120]
[377172584,1754266295574,-400.0,0.00050684,120]
[377172585,1754266295583,-980.28,0.00050684,120]
[377172586,1754266295593,-713.47,0.00050684,120]
[377172587,1754266295602,-465.47,0.00050684,120]
[377172588,1754266295611,-486.82,0.00050684,120]
[377172589,1754266295620,-514.06,0.00050684,120]
[377172590,1754266295629,-400.0,0.00050684,120]
[377172591,1754266295639,-414.45,0.00050684,120]
[377172592,1754266295648,-400.0,0.00050684,120]
[377172593,1754266295659,-400.0,0.00050684,120]
[377172594,1754266295670,-400.0,0.00050684,120]
[377172595,1754266295679,-400.0,0.00050684,120]
[377172596,1754266295689,-792.77,0.00050684,120]
[377172597,1754266295698,-981.8,0.00050684,120]
[377172598,1754266295708,-400.0,0.00050684,120]
[377172599,1754266295719,-400.0,0.00050684,120]
[377172600,1754266295730,-400.0,0.00050684,120]
[377172601,1754266295741,-421.18162099,0.00050684,120]
[377172602,1754266295752,-956.64,0.00050684,120]
[377172603,1754266295763,-724.66,0.00050684,120]
[377172604,1754266295773,-428.13,0.00050684,120]
[377172605,1754266295782,-525.48,0.00050684,120]
[377172606,1754266295792,-622.39,0.00050684,120]
[377172607,1754266295802,-510.92,0.00050684,120]
[377172608,1754266295811,-879.31,0.00050684,120]
[377172609,1754266295821,-400.0,0.00050684,120]
[377172610,1754266295830,-400.0,0.00050684,120]
[377172611,1754266295840,-400.0,0.00050684,120]
[377172612,1754266295850,-749.13,0.00050684,120]
[377172613,1754266295859,-400.0,0.00050684,120]
[377172614,1754266295870,-414.07,0.00050684,120]
[377172615,1754266295880,-427.26728017,0.00050684,120]
[377172616,1754266295890,-1211.33,0.00050684,120]
[377172617,1754266295899,-400.0,0.00050684,120]
[377172618,1754266295909,-565.42,0.00050684,120]
[377172619,1754266295918,-400.0,0.00050684,120]
[377172620,1754266295928,-400.0,0.00050684,120]
[377172621,1754266295937,-627.86,0.00050684,120]
[377172622,1754266295947,-400.0,0.00050684,120]
[377172623,1754266295956,-400.0,0.00050684,120]
[377172624,1754266295966,-641.45,0.00050684,120]
[377172625,1754266295976,-1018.34,0.00050684,120]
[377172626,1754266295985,-486.92255573,0.00050684,120]
[377172627,1754266295995,-689.84,0.00050684,120]
[377172628,1754266296005,-456.99,0.00050684,120]
[377172629,1754266296016,-1009.49,0.00050684,120]
[377172630,1754266296025,-400.0,0.00050684,120]
[377172631,1754266296035,-574.89,0.00050684,120]
[377172632,1754266296045,-400.0,0.00050684,120]
[377172633,1754266296054,-400.0,0.00050684,120]
[377172634,1754266296064,-804.57,0.00050684,120]
[377172635,1754266296074,-400.0,0.00050684,120]
[377172636,1754266296084,-611.13,0.00050684,120]
[377172637,1754266296094,-400.0,0.00050684,120]
[377172638,1754266296104,-1183.69,0.00050684,120]
[377172639,1754266296114,-594.33,0.00050684,120]
[377172640,1754266296124,-940.95,0.00050684,120]
[377172641,1754266296135,-421.41,0.00050684,120]
[377172642,1754266296146,-704.1,0.00050684,120]
[377172643,1754266296157,-901.35,0.00050684,120]
[377172644,1754266296168,-950.98,0.00050684,120]
[377172645,1754266296178,-1019.94,0.00050684,120]
[377172646,1754266296187,-657.96,0.00050684,120]
[377172647,1754266296198,-632.37,0.00050684,120]
[377172648,1754266296208,-400.0,0.00050684,120]
[377172649,1754266296218,-239.35587183,0.00050684,120]
[377172650,1754266296227,-687.15,0.00050684,120]
[377172651,1754266296238,-400.0,0.00050684,120]
[377172652,1754266296249,-557.5,0.00050684,120]
[377172653,1754266296259,-400.0,0.00050684,120]
[377172654,1754266296269,-992.38,0.00050684,120]
[377172655,1754266296281,-529.68,0.00050684,120]
[377172656,1754266296292,-1191.75,0.00050684,120]
[377172657,1754266296301,-1612.16,0.00050684,120]
[377172658,1754266296311,-650.27,0.00050684,120]
[377172659,1754266296321,-400.0,0.00050684,120]
[377172660,1754266296332,-872.85,0.00050684,120]
[377172661,1754266296342,-549.06,0.00050684,120]
[377172662,1754266296353,-808.65,0.00050684,120]
[377172663,1754266296363,-881.83,0.00050684,120]
[377172664,1754266296374,-400.0,0.00050684,120]
[377172665,1754266296384,-616.24,0.00050684,120]
[377172666,1754266296395,-400.0,0.00050684,120]
[377172667,1754266296404,-400.0,0.00050684,120]
[377172668,1754266296414,-400.0,0.00050684,120]
[377172669,1754266296424,-927.89,0.00050684,120]
[377172670,1754266296434,-996.8,0.00050684,120]
[377172671,1754266296444,-4720.31,0.00050684,120]
[377172672,1754266296454,-458.53,0.00050684,120]
[377172673,1754266296463,-480.32,0.00050684,120]
[377172674,1754266296473,-461.86,0.00050684,120]
[377172675,1754266296483,-400.0,0.00050684,120]
[377172676,1754266296492,-4894.61,0.00050684,120]
[377172677,1754266296502,-400.0,0.00050684,120]
[377172678,1754266296513,-674.67,0.00050684,120]
[377172679,1754266296523,-400.0,0.00050684,120]
[377172680,1754266296533,-816.6,0.00050684,120]
[377172681,1754266296543,-1033.94,0.00050684,120]
[377172682,1754266296553,-925.44,0.00050684,120]
[377172683,1754266296563,-400.0,0.00050684,120]
[377172684,1754266296573,-249.45496248,0.00050684,120]
[377172685,1754266296583,-400.0,0.00050684,120]
[377172686,1754266296593,-698.79,0.00050684,120]
[377172687,1754266296602,-1162.3,0.00050684,120]
[377172688,1754266296612,-536.25,0.00050684,120]
[377172689,1754266296622,-769.97,0.00050684,120]
[377172690,1754266296632,-400.0,0.00050684,120]
[377172691,1754266296641,-833.01,0.00050684,120]
[377172692,1754266296651,-400.0,0.00050684,120]
[377172693,1754266296662,-453.6,0.00050684,120]
[377172694,1754266296671,-400.0,0.00050684,120]
[377172695,1754266296681,-400.0,0.00050684,120]
[377172696,1754266296692,-1111.54,0.00050684,120]
[377172697,1754266296703,-556.87,0.00050684,120]
[377172698,1754266296713,-400.0,0.00050684,120]
[377172699,1754266296722,-1730.61,0.00050684,120]
[377172700,1754266296732,-400.0,0.00050684,120]
[377172701,1754266296741,-899.69,0.00050684,120]
[377172702,1754266296751,-732.85,0.00050684,120]
[377172703,1754266296761,-590.27,0.00050684,120]
[377172704,1754266296771,-901.32,0.00050684,120]
[377172705,1754266296782,-901.95,0.00050684,120]
[377172706,1754266296791,-400.0,0.00050684,120]
[377172707,1754266296801,-400.0,0.00050684,120]
[377172708,1754266296811,-723.26,0.00050684,120]
[377172709,1754266296820,-1592.92,0.00050684,120]
[377172710,1754266296830,-673.26,0.00050684,120]
[377172711,1754266296840,-1461.35,0.00050684,120]
[377172712,1754266296850,-384.82380718,0.00050684,120]
[377172713,1754266296859,-400.0,0.00050684,120]
[377172714,1754266296869,-412.28,0.00050684,60]
[377172715,1754266296879,-706.22,0.00050684,120]
[377172716,1754266296888,-1601.2,0.00050684,120]
[377172717,1754266296898,-400.0,0.00050684,120]
[377172718,1754266296907,-486.46720554,0.00050684,120]
[377172719,1754266296918,-418.96374944,0.00050684,120]
[377172720,1754266296928,-400.0,0.00050684,120]
[377172721,1754266296939,-400.0,0.00050684,120]
[377172722,1754266296950,-912.88,0.00050684,120]
[377172723,1754266296962,-949.81,0.00050684,120]
[377172724,1754266296974,-400.0,0.00050684,120]
[377172725,1754266296984,-400.0,0.00050684,120]
[377172726,1754266296994,-1484.94,0.00050684,120]
[377172727,1754266297004,-1173.53,0.00050684,120]
[377172728,1754266297014,-400.0,0.00050684,120]
[377172729,1754266297023,-2314.15,0.00050684,120]
[377172730,1754266297033,-492.77,0.00050684,120]
[377172731,1754266297043,-400.0,0.00050684,120]
[377172732,1754266297054,-1400.23,0.00050684,120]
[377172733,1754266297065,-1462.45,0.00050684,120]
[377172734,1754266297075,-215.02992404,0.00050684,120]
[377172735,1754266297085,-647.53,0.00050684,120]
[377172736,1754266297097,-1068.21,0.00050684,120]
[377172737,1754266297109,-5234.91,0.00050684,120]
[377172738,1754266297120,-1341.89,0.00050684,120]
[377172739,1754266297130,-400.0,0.00050684,120]
[377172740,1754266297144,-300.0,0.00050684,120]
[377172741,1754266297154,-1331.67,0.00050684,120]
[377172742,1754266297164,-1328.2,0.00050684,120]
[377172743,1754266297176,-400.0,0.00050684,120]
[377172744,1754266297185,-1001.16,0.00050684,120]
[377172745,1754266297198,-1119.42,0.00050684,120]
[377172746,1754266297209,-571.91,0.00050684,120]
[377172747,1754266297222,-955.48,0.00050684,120]
[377172748,1754266297232,-1005.19,0.00050684,120]
[377172749,1754266297242,-1578.35,0.00050684,120]
[377172750,1754266297252,-598.03,0.00050684,120]
[377172751,1754266297263,-675.29,0.00050684,120]
[377172752,1754266297275,-409.14,0.00050684,120]
[377172753,1754266297286,-400.0,0.00050684,120]
[377172754,1754266297295,-400.0,0.00050684,120]
[377172755,1754266297305,-817.11,0.00050684,120]
[377172756,1754266297314,-870.48,0.00050684,120]
[377172757,1754266297325,-400.0,0.00050684,120]
[377172758,1754266297335,-170.19114909,0.00050684,120]
[377172759,1754266297346,-1073.59,0.00050684,120]
[377172760,1754266297356,-523.8,0.00050684,120]
[377172761,1754266297367,-653.93,0.00050684,120]
[377172762,1754266297377,-524.6,0.00050684,120]
[377172763,1754266297387,-493.21,0.00050684,120]
[377172764,1754266297397,-400.0,0.00050684,120]
[377172765,1754266297407,-1126.78,0.00050684,120]
[377172766,1754266297418,-400.0,0.00050684,120]
[377172767,1754266297428,-1000.0,0.00050684,120]
[377172768,1754266297438,-415.07,0.00050684,120]
[377172769,1754266297448,-604.01,0.00050684,120]
[377172770,1754266297458,-534.65,0.00050684,120]
[377172771,1754266297469,-977.29,0.00050684,120]
[377172772,1754266297479,-400.0,0.00050684,120]
[377172773,1754266297490,-1489.88,0.00050684,120]
[377172774,1754266297500,-400.0,0.00050684,120]
[377172775,1754266297510,-400.0,0.00050684,120]
[377172776,1754266297520,-400.0,0.00050684,120]
[377172777,1754266297529,-400.0,0.00050684,120]
[377172778,1754266297540,-400.0,0.00050684,120]
[377172779,1754266297549,-474.72,0.00050684,120]
[377172780,1754266297559,-472.20981146,0.00050684,120]
[377172781,1754266297568,-581.15,0.00050684,120]
[377172782,1754266297579,-438.5,0.00050684,120]
[377172783,1754266297589,-5373.27,0.00050684,120]
[377172784,1754266297599,-400.0,0.00050684,120]
[377172785,1754266297608,-400.0,0.00050684,120]
[377172786,1754266297618,-721.19,0.00050684,120]
[377172787,1754266297628,-3835.37,0.00050684,120]
[377172788,1754266297638,-716.24,0.00050684,120]
[377172789,1754266297648,-834.22,0.00050684,120]
[377172790,1754266297658,-1134.6,0.00050684,120]
[377172791,1754266297667,-400.0,0.00050684,120]
[377172792,1754266297677,-400.0,0.00050684,120]
[377172793,1754266297687,-1049.57,0.00050684,120]
[377172794,1754266297696,-400.0,0.00050684,120]
[377172795,1754266297706,-400.0,0.00050684,120]
[377172796,1754266297716,-400.0,0.00050684,120]
[377172797,1754266297725,-587.26,0.00050684,120]
[377172798,1754266297735,-2012.25,0.00050684,120]
[377172799,1754266297745,-466.3140136,0.00050684,120]
[377172800,1754266297755,-151.0,0.00050684,120]
[377172801,1754266297766,-539.14,0.00050684,120]
[377172802,1754266297777,-400.0,0.00050684,120]
[377172803,1754266297786,-567.39,0.00050684,120]
[377172804,1754266297796,-400.0,0.00050684,120]
[377172805,1754266297806,-1390.5,0.00050684,120]
[377172806,1754266297816,-1877.89,0.00050684,120]
[377172807,1754266297827,-682.42,0.00050684,120]
[377172808,1754266297837,-400.0,0.00050684,120]
[377172809,1754266297847,-891.04,0.00050684,120]
[377172810,1754266297857,-400.0,0.00050684,120]
[377172811,1754266297867,-400.0,0.00050684,120]
[377172812,1754266297877,-808.31,0.00050684,120]
[377172813,1754266297887,-400.0,0.00050684,120]
[377172814,1754266297899,-476.3,0.00050684,120]
[377172815,1754266297909,-400.0,0.00050684,120]
[377172816,1754266297920,-538.34,0.00050684,120]
[377172817,1754266297932,-1187.72,0.00050684,120]
[377172818,1754266297943,-965.14,0.00050684,120]
[377172819,1754266298242,-151.0,0.00050684,120]
[377172820,1754266298264,-419.41,0.00050684,120]
[377172821,1754266298275,-400.0,0.00050684,120]
[377172822,1754266298285,-417.19,0.00050684,120]
[377172823,1754266298295,-400.0,0.00050684,120]
[377172824,1754266298304,-400.0,0.00050684,120]
[377172825,1754266298313,-1401.09,0.00050684,14]
[377172826,1754266298324,-400.0,0.00050684,120]
[377172827,1754266298333,-400.0,0.00050684,120]
[377172828,1754266298343,-184.68963336,0.00050684,120]
[377172829,1754266298353,-721.72,0.00050684,120]
[377172830,1754266298363,-400.0,0.00050684,120]
[377172831,1754266298373,-400.0,0.00050684,120]
[377172832,1754266298383,-1155.19,0.00050684,120]
[377172833,1754266298392,-400.0,0.00050684,120]
[377172834,1754266298402,-400.0,0.00050684,120]
[377172835,1754266298412,-400.0,0.00050684,120]
[377172836,1754266298421,-723.66,0.00050684,120]
[377172837,1754266298431,-439.33,0.00050684,120]
[377172838,1754266298441,-400.0,0.00050684,120]
[377172839,1754266298451,-1229.41,0.00050684,120]
[377172840,1754266298461,-405.87353166,0.00050684,120]
[377172841,1754266298470,-400.0,0.00050684,120]
[377172842,1754266298481,-400.0,0.00050684,120]
[377172843,1754266298490,-400.0,0.00050684,120]
[377172844,1754266298501,-1673.0,0.00050684,120]
[377172845,1754266298511,-473.61,0.00050684,120]
[377172846,1754266298521,-699.31,0.00050684,120]
[377172847,1754266298530,-510.4,0.00050684,120]
[377172848,1754266298540,-538.54466139,0.00050684,120]
[377172849,1754266298549,-482.29,0.00050684,120]
[377172850,1754266298558,-735.11,0.00050684,120]
[377172851,1754266298568,-1502.49,0.00050684,120]
[377172852,1754266298577,-400.0,0.00050684,120]
[377172853,1754266298587,-1013.66,0.00050684,120]
[377172854,1754266298596,-2886.78,0.00050684,120]
[377172855,1754266298605,-2668.08,0.00050684,120]
[377172856,1754266298615,-1392.39,0.00050684,120]
[377172857,1754266298624,-151.0,0.00050684,120]
[377172858,1754266298634,-400.0,0.00050684,120]
[377172859,1754266298643,-400.0,0.00050684,120]
[377172860,1754266298653,-500.0,0.00050684,120]
[377172861,1754266298662,-875.34,0.00050684,120]
[377172862,1754266298672,-400.0,0.00050684,120]
[377172863,1754266298681,-1070.15,0.00050684,120]
[377172864,1754266298691,-1043.21,0.00050684,120]
[377172865,1754266298700,-400.0,0.00050684,120]
[377172866,1754266298709,-939.51,0.00050684,120]
[377172867,1754266298719,-151.0,0.00050684,120]
[377172868,1754266298729,-510.32,0.00050684,120]
[377172869,1754266298739,-400.0,0.00050684,120]
[377172870,1754266298748,-400.0,0.00050684,120]
[377172871,1754266298757,-1204.62,0.00050684,120]
[377172872,1754266298767,-400.0,0.00050684,120]
[377172873,1754266298776,-400.0,0.00050684,120]
[377172874,1754266298787,-1931.51,0.00050684,120]
[377172875,1754266298797,-470.9,0.00050684,120]
[377172876,1754266298806,-957.13,0.00050684,120]
[377172877,1754266298815,-400.0,0.00050684,120]
[377172878,1754266298825,-1167.61,0.00050684,120]
[377172879,1754266298834,-814.96,0.00050684,120]
[377172880,1754266298843,-563.89,0.00050684,120]
[377172881,1754266298853,-1397.09,0.00050684,120]
[377172882,1754266298864,-400.0,0.00050684,120]
[377172883,1754266298874,-487.86,0.00050684,120]
[377172884,1754266298883,-3628.27,0.00050684,118]
[377172885,1754266298893,-2413.8,0.00050684,120]
[377172886,1754266298904,-907.23,0.00050684,120]
[377172887,1754266298914,-449.94,0.00050684,120]
[377172888,1754266298923,-400.0,0.00050684,120]
[377172889,1754266298934,-151.70108246,0.00050684,120]
[377172890,1754266298943,-607.01,0.00050684,120]
[377172891,1754266298953,-400.0,0.00050684,120]
[377172892,1754266298963,-322.944005,0.00050684,120]
[377172893,1754266298972,-400.0,0.00050684,120]
[377172894,1754266298982,-400.0,0.00050684,120]
[377172895,1754266298991,-400.0,0.00050684,120]
[377172896,1754266299000,-151.0,0.00050684,120]
[377172897,1754266299011,-322.944005,0.00050684,120]
[377172898,1754266299021,-400.0,0.00050684,120]
[377172899,1754266299031,-435.62,0.00050684,120]
[377172900,1754266299040,-448.72,0.00050684,120]
[377172901,1754266299050,-753.47,0.00050684,120]
[377172902,1754266299059,-940.38,0.00050684,120]
[377172903,1754266299068,-510.59,0.00050684,120]
[377172904,1754266299077,-1060.88,0.00050684,120]
[377172905,1754266299086,-1682.96,0.00050684,120]
[377172906,1754266299095,-424.27,0.00050684,120]
[377172907,1754266299105,-400.0,0.00050684,120]
[377172908,1754266299114,-612.85,0.00050684,120]
[377172909,1754266299123,-400.0,0.00050684,120]
[377172910,1754266299133,-400.0,0.00050684,120]
[377172911,1754266299142,-226.91668662,0.00050684,120]
[377172912,1754266299151,-3391.8,0.00050684,120]
[377172913,1754266299161,-27206.45,0.00050684,120]
[377172914,1754266299170,-150.0,0.00050685,7]
[377172915,1754266299180,-151.0,0.00050691,120]
[377172916,1754266299190,-150.0,0.00050691,30]
[377172917,1754266299204,-150.0,0.00050692,7]
[377172918,1754266299215,-1000.0,0.00050698,30]
[377172919,1754266299224,-150.0,0.00050701,7]
[377172920,1754266299235,-150.0,0.00050701,7]
[377172921,1754266299244,-150.0,0.00050704,30]
[377172922,1754266299253,-150.0,0.00050713,7]
[377172923,1754266299264,-150.0,0.00050716,30]
[377172924,1754266299274,-150.0,0.0005072,7]
[377172925,1754266299285,-515.0,0.00050722,20]
[377172926,1754266299295,-150.0,0.00050724,7]
[377172927,1754266299305,-1000.0,0.00050724,30]
[377172928,1754266299315,-150.0,0.00050725,7]
[377172929,1754266299325,-150.0,0.00050736,30]
[377172930,1754266299334,-150.0,0.00050747,7]
[377172931,1754266299343,-150.0,0.0005077,7]
[377172932,1754266299353,-150.0,0.0005078,2]
[377172933,1754266299362,-847.83515894,0.00050782,120]
[377172934,1754266299372,-150.0,0.00050787,7]
[377172935,1754266299382,-847.83515894,0.00050794,120]
[377172936,1754266299392,-150.0,0.00050806,7]
[377172937,1754266299402,-1000.0,0.00050806,30]
[377172938,1754266299412,-150.0,0.00050808,7]
[377172939,1754266299421,-150.0,0.00050808,7]
[377172940,1754266299431,-847.83515894,0.0005081,120]
[377172941,1754266299440,-847.83515894,0.00050833,120]
[377172942,1754266299450,-150.0,0.00050836,7]
[377172943,1754266299459,-880.08076189,0.00050848,120]
[377172944,1754266299469,-423.91757947,0.00050852,120]
[377172945,1754266299479,-150.0,0.00050854,7]
[377172946,1754266299488,-256.70253169,0.00050858,7]
[377172947,1754266299497,-1146.1687626,0.00050859,120]
[377172948,1754266299508,-150.0,0.00050859,7]
[377172949,1754266299518,-27788.62618013,0.00050859,120]
[377172950,1754266299527,-169.56703179,0.0005086,120]
[377172951,1754266299536,-27788.62618013,0.00050861,120]
[377172952,1754266299546,-150.0,0.00050862,7]
[377172953,1754266299556,-337.09928334,0.00050862,120]
[377172954,1754266299565,-1146.1687626,0.00050864,120]
[377172955,1754266299575,-150.0,0.00050866,7]
[377172956,1754266299584,-337.09928334,0.0005087,120]
[377172957,1754266299593,-3820.56254193,0.00050873,120]
[377172958,1754266299603,-3820.56254193,0.00050876,120]
[377172959,1754266299612,-150.0,0.00050879,7]
[377172960,1754266299622,-3745.54759236,0.00050882,120]
[377172961,1754266299631,-750.29290689,0.00050883,120]
[377172962,1754266299641,-264.02422859,0.00050886,120]
[377172963,1754266299650,-343.8506288,0.00050887,120]
[377172964,1754266299660,-169.56703179,0.00050887,120]
[377172965,1754266299669,-423.91757947,0.00050887,120]
[377172966,1754266299679,-337.09928334,0.00050887,120]
[377172967,1754266299688,-2500.97635624,0.0005089,120]
[377172968,1754266299697,-1123.66427773,0.00050891,120]
[377172969,1754266299706,-3745.54759236,0.00050891,120]
[377172970,1754266299715,-337.09928334,0.00050891,120]
[377172971,1754266299724,-150.0,0.00050893,7]
[377172972,1754266299734,-225.08787209,0.00050893,120]
[377172973,1754266299743,-880.08076189,0.00050893,120]
[377172974,1754266299752,-1123.66427773,0.00050895,120]
[377172975,1754266299764,-2500.97635624,0.00050896,120]
[377172976,1754266299773,-150.0,0.00050897,30]
[377172977,1754266299782,-264.02422859,0.00050898,120]
[377172978,1754266299792,-225.08787209,0.00050898,120]
[377172979,1754266299802,-150.0,0.00050899,7]
[377172980,1754266299811,-1000.0,0.00050901,30]
[377172981,1754266299821,-1000.0,0.00050901,30]
[377172982,1754266299831,-150.0,0.00050902,7]
[377172983,1754266299840,-169.56703179,0.00050903,120]
[377172984,1754266299850,-750.29290689,0.00050903,120]
[377172985,1754266299859,-3820.56254193,0.00050903,120]
[377172986,1754266299868,-150.0,0.00050905,7]
[377172987,1754266299878,-880.08076189,0.00050906,120]
[377172988,1754266299887,-866.92394554,0.00050907,120]
[377172989,1754266299897,-264.02422859,0.00050911,120]
[377172990,1754266299907,-880.08076189,0.00050912,120]
[377172991,1754266299916,-8336.58785406,0.00050915,120]
[377172992,1754266299926,-1123.66427773,0.00050917,120]
[377172993,1754266299935,-1000.0,0.0005092,30]
[377172994,1754266299944,-1146.1687626,0.00050921,120]
[377172995,1754266299954,-423.91757947,0.00050921,120]
[377172996,1754266299963,-264.02422859,0.00050924,120]
[377172997,1754266299973,-27788.62618013,0.00050925,120]
[377172998,1754266299983,-1123.66427773,0.00050925,120]
[377172999,1754266299992,-3820.56254193,0.00050926,120]
[377173000,1754266300002,-8336.58785406,0.00050926,120]
[377173001,1754266300012,-750.29290689,0.00050926,120]
[377173002,1754266300022,-169.56703179,0.00050929,120]
[377173003,1754266300031,-27788.62618013,0.00050932,120]
[377173004,1754266300040,-500.0,0.00050935,60]
[377173005,1754266300050,-2500.97635624,0.00050935,120]
[377173006,1754266300059,-8336.58785406,0.00050937,120]
[377173007,1754266300069,-337.09928334,0.00050937,120]
[377173008,1754266300078,-150.0,0.0005094,7]
[377173009,1754266300088,-150.0,0.0005094,7]
[377173010,1754266300097,-225.08787209,0.00050947,120]
[377173011,1754266300107,-1146.1687626,0.00050951,120]
[377173012,1754266300116,-750.29290689,0.00050952,120]
[377173013,1754266300126,-1146.1687626,0.00050955,120]
[377173014,1754266300135,-150.0,0.00050957,7]
[377173015,1754266300146,-3745.54759236,0.00050957,120]
[377173016,1754266300158,-200.766738,0.00050958,120]
[377173017,1754266300168,-200.766738,0.00050958,120]
[377173018,1754266300178,-151.0,0.00050958,120]
[377173019,1754266300187,-400.0,0.00050958,120]
[377173020,1754266300198,-292.19447717,0.00050958,120]
[377173021,1754266300208,-1068.84,0.00050958,120]
[377173022,1754266300218,-571.69,0.00050958,120]
[377173023,1754266300227,-400.0,0.00050958,120]
[377173024,1754266300237,-400.0,0.00050958,120]
[377173025,1754266300247,-1099.65,0.00050958,120]
[377173026,1754266300256,-566.06,0.00050958,120]
[377173027,1754266300267,-458.21,0.00050958,120]
[377173028,1754266300277,-400.0,0.00050958,120]
[377173029,1754266300287,-496.53028092,0.00050958,120]
[377173030,1754266300296,-870.993468,0.00050958,120]
[377173031,1754266300305,-314.68908291,0.00050958,120]
[377173032,1754266300315,-539.33886832,0.00050958,120]
[377173033,1754266300324,-720.227613,0.00050958,120]
[377173034,1754266300334,-940.144052,0.00050958,120]
[377173035,1754266300344,-400.0,0.00050958,120]
[377173036,1754266300353,-1083.39,0.00050958,120]
[377173037,1754266300363,-157.100014,0.00050958,120]
[377173038,1754266300372,-423.23,0.00050958,30]
[377173039,1754266300382,-553.68,0.00050958,120]
[377173040,1754266300391,-1147.18,0.00050958,120]
[377173041,1754266300401,-400.0,0.00050958,120]
[377173042,1754266300410,-385.1729355,0.00050958,120]
[377173043,1754266300419,-400.0,0.00050958,120]
[377173044,1754266300428,-400.0,0.00050958,120]
[377173045,1754266300438,-638.26,0.00050958,120]
[377173046,1754266300448,-836.44,0.00050958,120]
[377173047,1754266300457,-400.0,0.00050958,120]